fUST/lending_fUST_20250804
["ID","MTS","AMOUNT","RATE_DAILY","PERIOD"]
[377174701,1754267443174,-151.0,0.00049315,120]
[377174702,1754267443183,-1760.75,0.00049315,120]
[377174703,1754267443191,-151.0,0.00049315,120]
[377174704,1754267443200,-151.0,0.00049315,120]
[377174705,1754267443209,-151.0,0.00049315,120]
[377174706,1754267443218,-151.0,0.00049315,120]
[377174707,1754267443227,-151.0,0.00049315,120]
[377174708,1754267443237,-460.0,0.00049315,120]
[377174709,1754267443246,-580.59,0.00049315,120]
[377174710,1754267443352,-151.0,0.00049315,120]
[377174711,1754267443362,-460.0,0.00049315,120]
[377174712,1754267443371,-151.0,0.00049315,120]
[377174713,1754267443380,-460.0,0.00049315,120]
[377174714,1754267443389,-151.0,0.00049315,120]
[377174715,1754267443399,-151.0,0.00049315,120]
[377174716,1754267443408,-151.0,0.00049315,120]
[377174717,1754267443418,-151.0,0.00049315,120]
[377174718,1754267443427,-269.237782,0.00049315,120]
[377174719,1754267443436,-460.0,0.00049315,120]
[377174720,1754267443446,-151.0,0.00049315,120]
[377174721,1754267443455,-460.0,0.00049315,120]
[377174722,1754267443464,-236.990626,0.00049315,120]
[377174723,1754267443473,-738.67,0.00049315,120]
[377174724,1754267443483,-460.0,0.00049315,120]
[377174725,1754267443491,-460.0,0.00049315,120]
[377174726,1754267443501,-460.0,0.00049315,120]
[377174728,1754267443510,-460.0,0.00049315,120]
[377174730,1754267443520,-460.0,0.00049315,120]
[377174731,1754267443530,-460.0,0.00049315,120]
[377174732,1754267443539,-460.0,0.00049315,120]
[377174733,1754267443549,-683.39,0.00049315,120]
[377174734,1754267443558,-460.0,0.00049315,120]
[377174735,1754267443568,-460.0,0.00049315,120]
[377174736,1754267443578,-460.0,0.00049315,120]
[377174737,1754267443587,-460.0,0.00049315,120]
[377174738,1754267443596,-460.0,0.00049315,120]
[377174739,1754267443605,-460.0,0.00049315,120]
[377174740,1754267443615,-460.0,0.00049315,120]
[377174741,1754267443624,-576.88,0.00049315,120]
[377174742,1754267443633,-464.75400308,0.00049315,120]
[377174743,1754267443642,-460.0,0.00049315,120]
[377174744,1754267443651,-460.0,0.00049315,120]
[377174745,1754267443660,-460.0,0.00049315,120]
[377174746,1754267443669,-290.60809173,0.00049315,120]
[377174747,1754267443723,-169.39190827,0.00049315,120]
[377174748,1754267443732,-460.0,0.00049315,120]
[377174749,1754267443742,-460.0,0.00049315,120]
[377174750,1754267443751,-1778.0,0.00049315,120]
[377174751,1754267443761,-8.10869258,0.00049315,120]
[377174752,1754267443774,-451.89130742,0.00049315,120]
[377174753,1754267443784,-460.0,0.00049315,120]
[377174754,1754267443794,-460.0,0.00049315,120]
[377174755,1754267443804,-460.0,0.00049315,120]
[377174756,1754267443814,-460.0,0.00049315,120]
[377174757,1754267443824,-661.43240596,0.00049315,120]
[377174758,1754267444217,-330.154,0.00049315,120]
[377174759,1754267444234,-420.83359404,0.00049315,120]
[377174760,1754267444244,-201.56720925,0.00049315,120]
[377174767,1754267446048,-212.52741893,0.00046652,28]
[377174768,1754267446057,-374.73279075,0.00049315,120]
[377174769,1754267446067,-460.0,0.00049315,120]
[377174770,1754267446078,-460.0,0.00049315,120]
[377174771,1754267446087,-460.0,0.00049315,120]
[377174772,1754267446096,-599.43,0.00049315,120]
[377174773,1754267446105,-460.0,0.00049315,120]
[377174774,1754267446114,-1058.57,0.00049315,120]
[377174775,1754267446125,-460.0,0.00049315,120]
[377174776,1754267446134,-460.0,0.00049315,120]
[377174777,1754267446143,-460.0,0.00049315,120]
[377174778,1754267446153,-460.0,0.00049315,120]
[377174779,1754267446162,-460.0,0.00049315,120]
[377174780,1754267446171,-460.0,0.00049315,120]
[377174781,1754267446180,-460.0,0.00049315,120]
[377174782,1754267446189,-460.0,0.00049315,120]
[377174783,1754267446198,-672.24,0.00049315,120]
[377174784,1754267446207,-460.0,0.00049315,120]
[377174785,1754267446216,-500.0,0.00049315,120]
[377174786,1754267446225,-699.89,0.00049315,120]
[377174787,1754267446234,-460.0,0.00049315,120]
[377174788,1754267446244,-460.0,0.00049315,120]
[377174789,1754267446253,-460.0,0.00049315,120]
[377174790,1754267446262,-460.0,0.00049315,120]
[377174791,1754267446271,-460.0,0.00049315,120]
[377174792,1754267446280,-460.0,0.00049315,120]
[377174793,1754267446289,-460.0,0.00049315,120]
[377174794,1754267446299,-840.7,0.00049315,120]
[377174795,1754267446309,-460.0,0.00049315,120]
[377174796,1754267446318,-460.0,0.00049315,120]
[377174797,1754267446327,-460.0,0.00049315,120]
[377174798,1754267446336,-653.4,0.00049315,120]
[377174799,1754267446345,-460.0,0.00049315,120]
[377174800,1754267446354,-460.0,0.00049315,120]
[377174801,1754267446363,-460.0,0.00049315,120]
[377174802,1754267446372,-654.72,0.00049315,120]
[377174803,1754267446381,-1813.63,0.00049315,120]
[377174804,1754267446391,-208.94249236,0.00049315,120]
[377174805,1754267446400,-460.0,0.00049315,120]
[377174806,1754267446409,-460.0,0.00049315,120]
[377174807,1754267446418,-500.0,0.00049315,120]
[377174808,1754267446428,-500.0,0.00049315,120]
[377174809,1754267446437,-619.28,0.00049315,120]
[377174810,1754267446446,-460.0,0.00049315,120]
[377174811,1754267446455,-500.0,0.00049315,120]
[377174812,1754267446466,-529.68625105,0.00049315,120]
[377174813,1754267446475,-671.36,0.00049315,120]
[377174814,1754267446485,-1241.26,0.00049315,120]
[377174815,1754267446495,-460.0,0.00049315,120]
[377174816,1754267446504,-460.0,0.00049315,120]
[377174817,1754267446513,-151.0,0.00049315,120]
[377174818,1754267446523,-460.0,0.00049315,120]
[377174819,1754267446532,-460.0,0.00049315,120]
[377174820,1754267446541,-151.0,0.00049315,120]
[377174821,1754267446551,-151.0,0.00049315,120]
[377174822,1754267446561,-151.0,0.00049315,120]
[377174823,1754267446570,-151.0,0.00049315,120]
[377174824,1754267446580,-151.0,0.00049315,120]
[377174825,1754267446589,-151.0,0.00049315,120]
[377174826,1754267446598,-151.0,0.00049315,120]
[377174827,1754267446607,-151.0,0.00049315,120]
[377174828,1754267446617,-460.0,0.00049315,120]
[377174829,1754267446626,-460.0,0.00049315,120]
[377174830,1754267446636,-460.0,0.00049315,120]
[377174831,1754267446646,-1224.13,0.00049315,120]
[377174832,1754267446655,-460.0,0.00049315,120]
[377174833,1754267446665,-460.0,0.00049315,120]
[377174834,1754267446674,-460.0,0.00049315,120]
[377174835,1754267446683,-1076.09,0.00049315,120]
[377174836,1754267446693,-460.0,0.00049315,120]
[377174837,1754267446702,-451.10603502,0.00049315,7]
[377174838,1754267446713,-460.0,0.00049315,120]
[377174839,1754267446722,-460.0,0.00049315,120]
[377174840,1754267446732,-460.0,0.00049315,120]
[377174841,1754267446742,-460.0,0.00049315,120]
[377174842,1754267446751,-180.10530156,0.00049315,120]
[377174843,1754267446760,-677.5,0.00049315,120]
[377174844,1754267446770,-460.0,0.00049315,120]
[377174845,1754267446779,-460.0,0.00049315,120]
[377174846,1754267446789,-460.23090965,0.00049315,120]
[377174847,1754267446798,-460.0,0.00049315,120]
[377174848,1754267446808,-741.79,0.00049315,120]
[377174849,1754267446817,-460.0,0.00049315,120]
[377174850,1754267446827,-460.0,0.00049315,120]
[377174851,1754267446836,-460.0,0.00049315,120]
[377174852,1754267446846,-460.0,0.00049315,120]
[377174853,1754267446856,-460.0,0.00049315,120]
[377174854,1754267446867,-872.48,0.00049315,120]
[377174855,1754267446877,-323.05083066,0.00049315,120]
[377174856,1754267446886,-460.0,0.00049315,120]
[377174857,1754267446896,-460.0,0.00049315,120]
[377174858,1754267446905,-460.0,0.00049315,120]
[377174859,1754267446914,-460.0,0.00049315,120]
[377174860,1754267446923,-151.0,0.00049315,120]
[377174861,1754267446932,-151.0,0.00049315,120]
[377174862,1754267446941,-460.0,0.00049315,120]
[377174863,1754267446951,-404.88282795,0.00049315,120]
[377174864,1754267446960,-240.306492,0.00049315,120]
[377174865,1754267446969,-460.0,0.00049315,120]
[377174866,1754267446979,-460.0,0.00049315,120]
[377174867,1754267446988,-474.39,0.00049315,120]
[377174868,1754267446998,-527.78,0.00049315,120]
[377174869,1754267447007,-4810.1,0.00049315,120]
[377174870,1754267447017,-695.34,0.00049315,120]
[377174871,1754267447027,-460.0,0.00049315,120]
[377174872,1754267447037,-460.0,0.00049315,120]
[377174873,1754267447046,-460.0,0.00049315,120]
[377174874,1754267447056,-460.0,0.00049315,120]
[377174875,1754267447066,-892.03,0.00049315,120]
[377174876,1754267447078,-460.0,0.00049315,120]
[377174877,1754267447088,-2443.95,0.00049315,120]
[377174878,1754267447098,-460.0,0.00049315,120]
[377174879,1754267447107,-473.87573508,0.00049315,2]
[377174880,1754267447116,-460.0,0.00049315,120]
[377174881,1754267447126,-6708.28,0.00049315,120]
[377174882,1754267447135,-460.0,0.00049315,120]
[377174883,1754267447145,-460.0,0.00049315,120]
[377174884,1754267447156,-460.0,0.00049315,120]
[377174885,1754267447166,-481.93,0.00049315,120]
[377174886,1754267447176,-460.0,0.00049315,120]
[377174887,1754267447186,-460.0,0.00049315,120]
[377174888,1754267447195,-460.0,0.00049315,120]
[377174889,1754267447204,-460.0,0.00049315,120]
[377174890,1754267447214,-770.77,0.00049315,120]
[377174891,1754267447227,-460.0,0.00049315,120]
[377174892,1754267447241,-1542.32,0.00049315,120]
[377174893,1754267447250,-701.68,0.00049315,120]
[377174894,1754267447260,-460.0,0.00049315,120]
[377174895,1754267447270,-460.0,0.00049315,120]
[377174896,1754267447283,-500.0,0.00049315,120]
[377174897,1754267447296,-500.0,0.00049315,120]
[377174898,1754267447306,-500.0,0.00049315,120]
[377174899,1754267447316,-460.0,0.00049315,120]
[377174900,1754267447326,-500.0,0.00049315,120]
[377174901,1754267447336,-500.0,0.00049315,120]
[377174902,1754267447345,-500.0,0.00049315,120]
[377174903,1754267447354,-500.0,0.00049315,120]
[377174904,1754267447364,-500.0,0.00049315,120]
[377174905,1754267447373,-156.06175416,0.00049315,120]
[377174906,1754267447382,-495.11111127,0.00049315,120]
[377174907,1754267447390,-460.0,0.00049315,120]
[377174908,1754267447400,-460.0,0.00049315,120]
[377174909,1754267447409,-460.0,0.00049315,120]
[377174910,1754267447418,-460.0,0.00049315,120]
[377174911,1754267447428,-460.0,0.00049315,120]
[377174912,1754267447437,-460.0,0.00049315,120]
[377174913,1754267447447,-460.0,0.00049315,120]
[377174914,1754267447455,-523.63,0.00049315,120]
[377174915,1754267447465,-460.0,0.00049315,120]
[377174916,1754267447474,-460.0,0.00049315,120]
[377174917,1754267447484,-460.0,0.00049315,120]
[377174918,1754267447493,-460.0,0.00049315,120]
[377174919,1754267447503,-460.0,0.00049315,120]
[377174920,1754267447512,-460.0,0.00049315,120]
[377174921,1754267447522,-390.07918665,0.00049315,120]
[377174922,1754267447531,-460.0,0.00049315,120]
[377174923,1754267447541,-1592.27617917,0.00049315,120]
[377174924,1754267447557,-1188.63002315,0.00049315,120]
[377174935,1754267548735,-337.15305541,0.000403,5]
[377174936,1754267548757,-500.0,0.000403,5]
[377174937,1754267548779,-500.0,0.000403,5]
[377174938,1754267548800,-316.0,0.00040899,5]
[377174939,1754267548826,-370.97506078,0.000409,43]
[377174940,1754267624125,151.0,0.00027051,7]
[377174941,1754267624150,7.38,0.00027051,7]
[377174942,1754267624188,158.38,0.00027351,7]
[377174943,1754267624264,158.38,0.00027451,15]
[377174944,1754267624346,158.38,0.00027551,15]
[377174945,1754267624427,158.38,0.00027651,15]
[377174946,1754267624545,158.38,0.00027751,15]
[377174947,1754267624572,158.38,0.00027951,15]
[377174948,1754267624739,158.38,0.00028051,15]
[377174949,1754267625025,158.38,0.00028151,15]
[377174950,1754267625106,158.46,0.00028251,15]
[377174951,1754267626205,158.38,0.00026951,7]
[377174952,1754267626555,158.38,0.00027151,7]
[377174953,1754267626801,158.38,0.00027251,7]
[377174954,1754267631213,158.38,0.00027851,15]
[377174955,1754267683699,-5000.0,0.00030137,120]
[377174956,1754267683730,-388.90298349,0.000329,27]
[377174957,1754267683756,-388.90298323,0.00033624,29]
[377174958,1754267683781,-388.90298323,0.00034348,30]
[377174959,1754267683806,-388.90298323,0.00035072,32]
[377174960,1754267683829,-388.90298323,0.00035797,33]
[377174961,1754267683854,-388.90298323,0.00036521,34]
[377174962,1754267683878,-388.90298323,0.00037245,36]
[377174963,1754267683903,-388.90298323,0.00037969,37]
[377174964,1754267683926,-388.90298323,0.00038693,39]
[377174965,1754267683951,-200.0,0.00038785,30]
[377174966,1754267683975,-200.0,0.00038785,30]
[377174967,1754267683999,-200.0,0.00038785,30]
[377174968,1754267684022,-388.90298323,0.00039417,40]
[377174969,1754267684045,-388.90298323,0.00040141,42]
[377174970,1754267684070,-243.06718421,0.00040866,43]
[377174972,1754267732997,21042.16190481,0.0003,7]
[377174973,1754267768150,161.637477,0.00013699,2]
[377174980,1754267951603,-286.34447257,0.00031941,2]
[377174981,1754267951627,-173.65552743,0.000405,60]
[377174993,1754268146235,-20000.0,0.00038,30]
[377174994,1754268146255,-29857.0,0.0004,30]
[377174998,1754268170019,198.0,0.0003,2]
[377175005,1754268315120,-736.20000342,0.00031941,2]
[377175010,1754268361097,113.79999658,0.0003868,2]
[377175012,1754268384655,-41.20009832,0.0003868,2]
[377175013,1754268384677,-179.74835231,0.0003868,20]
[377175014,1754268384703,-239.05154937,0.000389,39]
[377175016,1754268390177,-2.85050135,0.000389,39]
[377175017,1754268390200,-180.81070532,0.00039999,5]
[377175018,1754268404008,463.0,0.0003,7]
[377175024,1754268625758,160.0,0.0003,7]
[377175040,1754268632024,-773.72315319,0.0003868,2]
[377175041,1754268632034,-232.10990727,0.000399,41]
[377175043,1754268632046,-400.0,0.00039999,5]
[377175044,1754268632055,-601.0,0.00039999,5]
[377175045,1754268632065,-143.0,0.0004,30]
[377175046,1754268632075,-544.60092842,0.0004,5]
[377175047,1754268632084,-231.58651985,0.0004,5]
[377175048,1754268632094,-232.10990698,0.00040383,42]
[377175049,1754268632103,-26.34447257,0.000405,60]
[377175050,1754268632112,-155.0,0.00040749,120]
[377175051,1754268632122,-232.10990698,0.00040866,43]
[377175052,1754268632131,-232.10990698,0.00041348,44]
[377175054,1754268632140,-232.10990698,0.00041831,45]
[377175056,1754268632149,-232.10990698,0.00042314,46]
[377175058,1754268632159,-232.10990698,0.00042797,47]
[377175059,1754268632167,-192.23387816,0.00043279,48]
[377175060,1754268632179,-39.87602882,0.00043279,48]
[377175061,1754268632188,-232.10990698,0.00043762,49]
[377175062,1754268632197,-155.0,0.00043794,120]
[377175063,1754268632207,-160.0,0.00043824,2]
[377175064,1754268632216,-1069.40626884,0.0004384,2]
[377175065,1754268632225,-6571.71570084,0.00044,30]
[377175066,1754268632272,160.0,0.0003,30]
[377175092,1754268638120,-773.72315319,0.0003868,2]
[377175094,1754268638130,-23428.28429916,0.00044,30]
[377175096,1754268638140,-500.0,0.0004421,120]
[377175098,1754268638150,-500.0,0.0004421,120]
[377175100,1754268638159,-400.52505022,0.0004421,2]
[377175102,1754268638169,-462.57035403,0.0004421,120]
[377175104,1754268638178,-18236.592567,0.00044211,2]
[377175106,1754268638188,-211.4133011,0.0004423,2]
[377175108,1754268638197,-232.10990698,0.00044245,50]
[377175110,1754268638207,-160.0,0.000443,2]
[377175112,1754268638216,-232.10990698,0.00044728,51]
[377175115,1754268638226,-260.0,0.00044848,2]
[377175116,1754268638235,-200.0,0.00044951,30]
[377175118,1754268638245,-200.0,0.00044951,30]
[377175120,1754268638254,-200.0,0.00044951,30]
[377175123,1754268638264,-200.0,0.00044951,30]
[377175125,1754268638273,-1000.0,0.00045,120]
[377175127,1754268638283,-175.75,0.00045,72]
[377175129,1754268638293,-20000.0,0.00045,60]
[377175131,1754268638302,-31299.47,0.00045,14]
[377175134,1754268638312,-500.0,0.00045,10]
[377175136,1754268638322,-505.15990573,0.00045,10]
[377175138,1754268638331,-232.10990698,0.0004521,52]
[377175139,1754268638340,-360.0,0.00045396,2]
[377175141,1754268638350,-1000.0,0.00045548,10]
[377175143,1754268638359,-232.10990698,0.00045693,53]
[377175145,1754268638368,-300.0,0.00045944,2]
[377175148,1754268638378,-1000.0,0.00046,120]
[377175150,1754268638387,-1500.0,0.00046096,10]
[377175152,1754268638397,-232.10990698,0.00046176,53]
[377175154,1754268638406,-985.56759292,0.00046644,10]
[377175156,1754268638415,-232.10990698,0.00046659,54]
[377175158,1754268638425,-151.0,0.00046782,2]
[377175160,1754268638433,-151.0,0.00046782,2]
[377175162,1754268638442,-151.0,0.00046782,2]
[377175164,1754268638451,-151.0,0.00046782,2]
[377175166,1754268638461,-151.0,0.00046782,2]
[377175168,1754268638470,-296.62956687,0.00046782,2]
[377175170,1754268638480,-1000.0,0.00047,120]
[377175172,1754268638489,-232.10990698,0.00047141,55]
[377175174,1754268638499,-232.10990698,0.00047624,56]
[377175176,1754268638508,-1000.0,0.00048,120]
[377175178,1754268638519,-232.10990698,0.00048107,57]
[377175180,1754268638528,-1000.0,0.000485,120]
[377175182,1754268638537,-232.10990698,0.0004859,58]
[377175184,1754268638548,-1000.0,0.00049,120]
[377175186,1754268638558,-223.9,0.00049055,120]
[377175188,1754268638568,-152.76684995,0.0004906,2]
[377175190,1754268638577,-232.10990698,0.00049072,59]
[377175192,1754268638586,-200.0,0.00049125,60]
[377175194,1754268638596,-200.0,0.00049125,60]
[377175196,1754268638605,-200.0,0.00049125,60]
[377175198,1754268638615,-200.0,0.00049125,60]
[377175200,1754268638624,-320.0,0.00049125,60]
[377175202,1754268638634,-152.76684995,0.00049138,2]
[377175204,1754268638643,-2773.22566772,0.0004915,4]
[377175206,1754268638652,-4606.28,0.00049159,120]
[377175208,1754268638662,-172.0,0.0004916,30]
[377175210,1754268638677,-174.90453535,0.0004916,30]
[377175212,1754268638686,-160.0,0.0004916,30]
[377175214,1754268638695,-152.0,0.0004916,30]
[377175216,1754268638705,-160.0,0.0004916,30]
[377175219,1754268638716,-152.0,0.0004916,30]
[377175221,1754268638725,-152.0,0.0004916,30]
[377175223,1754268638734,-152.0,0.0004916,30]
[377175225,1754268638744,-160.0,0.0004916,30]
[377175226,1754268638753,-155.0,0.0004916,30]
[377175228,1754268638763,-1757.0,0.0004916,30]
[377175231,1754268638774,-162.72034539,0.0004916,30]
[377175233,1754268638783,-211.2360704,0.0004916,30]
[377175235,1754268638793,-152.0,0.0004916,30]
[377175237,1754268638803,-1757.0,0.0004916,30]
[377175239,1754268638815,-1757.0,0.0004916,30]
[377175241,1754268638824,-152.0,0.0004916,30]
[377175243,1754268638835,-1757.0,0.0004916,30]
[377175244,1754268638844,-152.0,0.0004916,30]
[377175247,1754268638854,-1757.0,0.0004916,30]
[377175249,1754268638864,-152.0,0.0004916,30]
[377175251,1754268638873,-1757.0,0.0004916,30]
[377175252,1754268638882,-152.0,0.0004916,30]
[377175254,1754268638892,-1757.0,0.0004916,30]
[377175256,1754268638902,-152.0,0.0004916,30]
[377175258,1754268638911,-152.0,0.0004916,30]
[377175261,1754268638921,-1757.0,0.0004916,30]
[377175263,1754268638931,-152.0,0.0004916,30]
[377175265,1754268638940,-152.0,0.0004916,30]
[377175266,1754268638950,-152.0,0.0004916,30]
[377175268,1754268638959,-152.0,0.0004916,30]
[377175270,1754268638968,-1757.0,0.0004916,30]
[377175272,1754268638979,-152.0,0.0004916,30]
[377175274,1754268638990,-1757.0,0.0004916,30]
[377175277,1754268639000,-152.0,0.0004916,30]
[377175279,1754268639010,-1757.0,0.0004916,30]
[377175281,1754268639020,-152.0,0.0004916,30]
[377175283,1754268639030,-1757.0,0.0004916,30]
[377175285,1754268639040,-152.0,0.0004916,30]
[377175287,1754268639051,-1757.0,0.0004916,30]
[377175289,1754268639060,-152.0,0.0004916,30]
[377175291,1754268639070,-1757.0,0.0004916,30]
[377175293,1754268639079,-152.0,0.0004916,30]
[377175295,1754268639089,-1757.0,0.0004916,30]
[377175297,1754268639098,-152.0,0.0004916,30]
[377175299,1754268639107,-1757.0,0.0004916,30]
[377175301,1754268639117,-152.0,0.0004916,30]
[377175303,1754268639126,-152.0,0.0004916,30]
[377175305,1754268639136,-1757.0,0.0004916,30]
[377175307,1754268639145,-1757.0,0.0004916,30]
[377175309,1754268639154,-152.0,0.0004916,30]
[377175311,1754268639164,-1757.0,0.0004916,30]
[377175313,1754268639173,-325.0,0.0004916,30]
[377175315,1754268639182,-325.0,0.0004916,30]
[377175317,1754268639192,-325.0,0.0004916,30]
[377175319,1754268639201,-325.0,0.0004916,30]
[377175321,1754268639211,-1757.0,0.0004916,30]
[377175323,1754268639221,-325.0,0.0004916,30]
[377175325,1754268639231,-1757.0,0.0004916,30]
[377175327,1754268639240,-1757.0,0.0004916,30]
[377175329,1754268639249,-325.0,0.0004916,30]
[377175331,1754268639259,-1757.0,0.0004916,30]
[377175333,1754268639268,-325.0,0.0004916,30]
[377175335,1754268639278,-1778.96746399,0.0004916,30]
[377175337,1754268639287,-325.0,0.0004916,30]
[377175339,1754268639296,-152.0,0.0004916,30]
[377175341,1754268639306,-325.0,0.0004916,30]
[377175343,1754268639315,-152.0,0.0004916,30]
[377175345,1754268639325,-325.0,0.0004916,30]
[377175347,1754268639335,-152.0,0.0004916,30]
[377175349,1754268639345,-326.05611235,0.0004916,30]
[377175351,1754268639354,-152.0,0.0004916,30]
[377175353,1754268639363,-152.0,0.0004916,30]
[377175355,1754268639373,-152.0,0.0004916,30]
[377175357,1754268639383,-152.0,0.0004916,30]
[377175359,1754268639392,-152.0,0.0004916,30]
[377175361,1754268639402,-152.0,0.0004916,30]
[377175363,1754268639412,-152.0,0.0004916,30]
[377175365,1754268639422,-152.0,0.0004916,30]
[377175367,1754268639431,-152.0,0.0004916,30]
[377175369,1754268639441,-152.0,0.0004916,30]
[377175371,1754268639450,-200.0,0.0004916,20]
[377175373,1754268639459,-231.62108626,0.00049168,2]
[377175375,1754268639469,-160.0,0.00049177,2]
[377175377,1754268639479,-160.0,0.00049177,2]
[377175379,1754268639488,-160.0,0.00049177,2]
[377175381,1754268639497,-215.12253551,0.00049182,2]
[377175383,1754268639507,-160.0,0.00049186,2]
[377175385,1754268639516,-2151.94,0.00049188,10]
[377175387,1754268639525,-1386.61283386,0.00049205,4]
[377175389,1754268639535,-152.76684995,0.00049215,2]
[377175392,1754268639546,-2046.11535702,0.00049215,2]
[377175394,1754268639555,-40878.59313288,0.00049215,5]
[377175396,1754268639565,-841.87402298,0.00049217,2]
[377175398,1754268639575,-460.95174316,0.00049225,2]
[377175400,1754268639586,-1127.48269834,0.00049295,4]
[377175405,1754268639613,-259.13013552,0.00049295,4]
[377175408,1754268639622,-1513.76067862,0.000493,120]
[377175411,1754268639638,-1486.28022138,0.000493,120]
[377175413,1754268639648,-2000.0,0.000493,120]
[377175415,1754268639658,-9394.5906895,0.00049305,4]
[377175417,1754268639674,-666.95806706,0.00049305,4]
[377175738,1754268643116,-160.0,0.0004,120]
[377175740,1754268643126,-3804.57958204,0.00049305,4]
[377175743,1754268643136,-250.0,0.00049314,120]
[377175746,1754268643145,-250.0,0.00049314,120]
[377175749,1754268643155,-250.0,0.00049314,120]
[377175752,1754268643165,-500.0,0.00049314,120]
[377175755,1754268643174,-250.0,0.00049314,120]
[377175758,1754268643183,-500.0,0.00049314,120]
[377175762,1754268643193,-501.86393037,0.00049314,120]
[377175764,1754268643202,-250.0,0.00049314,120]
[377175766,1754268643211,-500.0,0.00049314,120]
[377175768,1754268643221,-250.0,0.00049314,120]
[377175770,1754268643230,-500.0,0.00049314,120]
[377175772,1754268643239,-250.0,0.00049314,120]
[377175774,1754268643249,-500.0,0.00049314,120]
[377175776,1754268643258,-500.0,0.00049314,120]
[377175778,1754268643267,-500.0,0.00049314,120]
[377175780,1754268643277,-500.0,0.00049314,120]
[377175782,1754268643287,-500.0,0.00049314,120]
[377175795,1754268643397,-500.0,0.00049314,120]
[377175798,1754268643428,-500.0,0.00049314,120]
[377175800,1754268643438,-300.0,0.00049314,120]
[377175802,1754268643448,-300.0,0.00049314,120]
[377175804,1754268643457,-300.0,0.00049314,120]
[377175806,1754268643467,-151.0,0.00049314,120]
[377175808,1754268643477,-151.0,0.00049314,120]
[377175810,1754268643486,-151.0,0.00049314,120]
[377175812,1754268643496,-151.0,0.00049314,120]
[377175814,1754268643505,-151.0,0.00049314,120]
[377175816,1754268643514,-151.0,0.00049314,120]
[377175818,1754268643524,-151.0,0.00049314,120]
[377175820,1754268643533,-151.0,0.00049314,120]
[377175822,1754268643542,-151.0,0.00049314,120]
[377175824,1754268643554,-161.20581016,0.00049314,120]
[377175826,1754268643563,-151.0,0.00049314,120]
[377175828,1754268643572,-151.0,0.00049314,120]
[377175830,1754268643582,-151.0,0.00049314,120]
[377175832,1754268643592,-151.0,0.00049314,120]
[377175834,1754268643602,-151.0,0.00049314,120]
[377175836,1754268643611,-151.0,0.00049314,120]
[377175838,1754268643621,-151.0,0.00049314,120]
[377175840,1754268643629,-151.0,0.00049314,120]
[377175842,1754268643639,-151.0,0.00049314,120]
[377175844,1754268643648,-151.0,0.00049314,120]
[377175846,1754268643658,-151.0,0.00049314,120]
[377175848,1754268643667,-151.0,0.00049314,120]
[377175850,1754268643679,-151.0,0.00049314,120]
[377175852,1754268643690,-151.0,0.00049314,120]
[377175854,1754268643699,-151.0,0.00049314,120]
[377175856,1754268643710,-151.0,0.00049314,120]